bitfinex/quotes_SOLUSD_20250514
["timestamp","ask_amount","ask_price","bid_price","bid_amount"]
[1747183969058,16.11052996,182.55,182.51,6.6376231]
[1747183969858,6.6376231,182.54,182.49,20.72]
[1747183970155,16.11052996,182.55,182.51,6.6376231]
[1747183970467,9.47290686,182.55,182.53,6.6376231]
[1747183971557,9.47290686,182.55,182.54,6.6376231]
[1747183971558,1.3,182.55,182.54,6.6376231]
[1747183972066,6.77795124,182.55,182.49,20.72]
[1747183972234,6.77795124,182.55,182.52,6.6376231]
[1747183972730,6.77795124,182.55,182.53,6.6376231]
[1747183975469,1.3,182.55,182.54,6.6376231]
[1747183977567,7.9376231,182.6,182.54,6.6376231]
[1747183977749,1.3,182.6,182.56,6.6376231]
[1747183978865,5.47675119,182.59,182.56,6.6376231]
[1747183979680,8.19809023,182.61,182.52,8.2986231]
[1747183979860,14.83571333,182.61,182.56,6.6376231]
[1747183980171,6.6376231,182.57,182.53,6.6376231]
[1747183980342,6.6376231,182.57,182.52,6.6376231]
[1747183981157,13.41527428,182.56,182.51,6.6376231]
[1747183981461,7.9376231,182.55,182.5,6.6376231]
[1747183981870,6.6376231,182.53,182.48,6.6376231]
[1747183982050,6.6376231,182.52,182.47,6.6376231]
[1747183982441,6.6376231,182.53,182.48,6.6376231]
[1747183982974,1.3,182.54,182.49,6.6376231]
[1747183983271,12.11617457,182.53,182.48,6.6376231]
[1747183984568,5.47855147,182.53,182.49,6.6376231]
[1747183985343,5.47855147,182.53,182.5,6.6376231]
[1747183986078,5.47855147,182.53,182.49,6.6376231]
[1747183986374,5.47915182,182.51,182.47,6.6376231]
[1747183986575,5.47915182,182.51,182.48,6.6376231]
[1747183987571,6.6376231,182.5,182.43,20.46]
[1747183987884,6.6376231,182.5,182.45,6.6376231]
[1747183987885,1.3,182.49,182.45,6.6376231]
[1747183988375,1.3,182.49,182.48,6.6376231]
[1747183988560,5.47855147,182.53,182.48,6.6376231]
[1747183988762,1.3,182.52,182.49,6.6376231]
[1747183989560,6.77909492,182.52,182.49,6.6376231]
[1747183992280,6.77909492,182.52,182.48,6.6376231]
[1747183992652,6.77909492,182.52,182.49,6.6376231]
[1747183992872,1.3,182.52,182.5,6.6376231]
[1747183994971,1.3,182.52,182.51,6.6376231]
[1747183995593,1.3,182.52,182.5,6.6376231]
[1747183995767,6.77894171,182.52,182.49,6.6376231]
[1747183996170,1.3,182.52,182.5,6.6376231]
[1747183996993,6.77885321,182.52,182.49,6.6376231]
[1747183997505,6.77885321,182.52,182.47,6.6376231]
[1747183997506,13.41647631,182.52,182.47,6.6376231]
[1747183997714,6.6376231,182.51,182.46,26.3976231]
[1747183998696,5.47945205,182.5,182.46,26.3976231]
[1747183998891,6.6376231,182.49,182.46,19.76]
[1747183999198,6.6376231,182.49,182.44,6.6376231]
[1747183999780,1.3,182.51,182.48,6.6376231]
[1747183999978,5.47825134,182.54,182.49,6.6376231]
[1747184000401,5.47825134,182.54,182.49,6.6376231]
[1747184001297,5.47825134,182.54,182.43,6.6376231]
[1747184001298,6.6376231,182.52,182.44,5.62332801]
[1747184001605,6.6376231,182.49,182.43,6.6376231]
[1747184001769,6.6376231,182.5,182.45,6.6376231]
[1747184002111,1.3,182.51,182.47,6.6376231]
[1747184002300,1.3,182.51,182.43,0.14216157]
[1747184002493,1.3,182.51,182.47,6.6376231]
[1747184002885,1.3,182.51,182.42,21.3359]
[1747184002886,12.11707515,182.5,182.42,21.3359]
[1747184003077,13.41707515,182.5,182.42,21.3359]
[1747184003387,13.41707515,182.5,182.45,6.6376231]
[1747184006086,6.77945205,182.5,182.45,6.6376231]
[1747184006894,13.41707515,182.5,182.45,6.6376231]
[1747184007088,13.41707515,182.5,182.44,6.6376231]
[1747184007471,6.6376231,182.48,182.43,6.6376231]
[1747184007690,7.9376231,182.49,182.43,6.6376231]
[1747184008406,1.3,182.49,182.42,19.76]
[1747184008587,6.6376231,182.48,182.43,6.6376231]
[1747184009303,12.11797603,182.47,182.42,26.3976231]
[1747184009491,1.3,182.46,182.42,26.3976231]
[1747184009894,1.3,182.46,182.43,6.6376231]
[1747184010506,6.6376231,182.44,182.37,19.76]
[1747184010718,6.6376231,182.42,182.37,26.3976231]
[1747184011410,1.3,182.43,182.37,19.76]
[1747184011411,12.11977868,182.41,182.37,19.76]
[1747184011706,5.48215558,182.41,182.36,6.6376231]
[1747184011903,6.6376231,182.4,182.35,15.19609858]
[1747184012096,7.9376231,182.4,182.35,15.19609858]
[1747184012302,6.6376231,182.39,182.35,8.55847548]
[1747184012506,6.6376231,182.36,182.35,8.55847548]
[1747184013395,12.12128179,182.36,182.35,8.55847548]
[1747184013577,5.48365869,182.36,182.35,8.55847548]
[1747184013780,12.12128179,182.36,182.35,8.55847548]
[1747184014181,26.0,182.34,182.33,17.11695096]
[1747184014388,32.6376231,182.34,182.33,17.11695096]
[1747184014784,32.6376231,182.34,182.27,19.76]
[1747184015013,6.6376231,182.29,182.24,8.58226394]
[1747184015194,6.6376231,182.28,182.24,8.58226394]
[1747184015394,6.6376231,182.25,182.24,8.58226394]
[1747184016187,13.69336637,182.27,182.24,8.58226394]
[1747184016386,6.6376231,182.25,182.24,8.58226394]
[1747184017421,6.6376231,182.25,182.18,6.6376231]
[1747184017422,5.48726953,182.24,182.18,6.6376231]
[1747184017587,6.6376231,182.23,182.18,6.6376231]
[1747184018208,6.78726953,182.24,182.18,6.6376231]
[1747184018519,6.6376231,182.23,182.18,6.6376231]
[1747184018913,6.6376231,182.23,182.17,19.78]
[1747184019116,6.6376231,182.23,182.18,6.6376231]
[1747184019516,1.3,182.24,182.19,6.6376231]
[1747184019711,1.3,182.27,182.23,6.6376231]
[1747184019923,1.3,182.27,182.24,6.6376231]
[1747184019924,6.78647906,182.27,182.24,6.6376231]
[1747184021218,1.3,182.27,182.26,6.6376231]
[1747184022497,5.48479893,182.33,182.26,6.6376231]
[1747184022696,5.48479893,182.33,182.29,6.6376231]
[1747184023022,5.48516263,182.31,182.27,6.6376231]
[1747184023389,12.12278573,182.31,182.26,6.6376231]
[1747184023716,6.6376231,182.3,182.25,6.6376231]
[1747184024017,12.12278573,182.31,182.26,6.6376231]
[1747184025713,6.6376231,182.3,182.25,6.6376231]
[1747184025902,6.6376231,182.27,182.24,19.78]
[1747184026215,6.6376231,182.27,182.22,6.6376231]
[1747184026912,1.3,182.29,182.18,38.95152752]
[1747184027093,1.3,182.29,182.26,6.6376231]
[1747184027300,6.78591487,182.29,182.25,6.6376231]
[1747184029024,1.3,182.29,182.27,6.6376231]
[1747184029588,6.78516572,182.31,182.28,6.6376231]
[1747184029795,5.48482348,182.33,182.29,6.6376231]
[1747184030022,7.9376231,182.32,182.27,6.6376231]
[1747184030196,6.6376231,182.3,182.26,6.6376231]
[1747184030521,5.48546352,182.3,182.26,6.6376231]
[1747184031289,6.6376231,182.27,182.19,6.4169]
[1747184031495,6.6376231,182.24,182.19,6.6376231]
[1747184031700,1.3,182.23,182.19,6.6376231]
[1747184032123,7.9376231,182.22,182.18,19.74]
[1747184032619,5.48817298,182.21,182.18,19.74]
[1747184033024,6.6376231,182.19,182.12,6.6376231]
[1747184033208,6.6376231,182.17,182.08,36.81642306]
[1747184033410,45.20860544,182.21,182.11,10.6932203]
[1747184033411,10.6932203,182.16,182.11,10.6932203]
[1747184034005,10.6932203,182.15,182.1,10.6932203]
[1747184034207,10.6932203,182.14,182.09,10.6932203]
[1747184034414,10.6932203,182.14,182.08,19.74]
[1747184034614,10.6932203,182.15,182.08,19.74]
[1747184034821,10.6932203,182.15,182.1,10.6932203]
[1747184035306,10.6932203,182.15,182.08,19.74]
[1747184035637,10.6932203,182.15,182.1,10.6932203]
[1747184036422,5.4902822,182.14,182.1,10.6932203]
[1747184037837,10.6932203,182.11,182.01,5.49420361]
[1747184038006,10.6932203,182.1,182.05,10.6932203]
[1747184038207,10.6932203,182.11,182.06,10.6932203]
[1747184039227,10.6932203,182.07,182.0,16.67316672]
[1747184039431,10.6932203,182.07,182.0,5.97994642]
[1747184039616,10.6932203,182.07,182.02,10.6932203]
[1747184040418,10.6932203,182.07,182.0,5.97994642]
[1747184040737,10.6932203,182.04,181.96,19.74]
[1747184040922,10.6932203,182.0,181.95,10.6932203]
[1747184041237,10.6932203,181.98,181.93,19.74]
[1747184041448,10.6932203,181.98,181.93,30.4332203]
[1747184041613,10.6932203,181.98,181.93,19.74]
[1747184042112,10.6932203,181.98,181.93,30.4332203]
[1747184042433,10.6932203,181.97,181.92,10.6932203]
[1747184043342,5.49420361,182.01,181.96,10.6932203]
[1747184043638,5.49395572,182.02,181.98,10.6932203]
[1747184045035,10.6932203,182.04,181.99,10.6932203]
[1747184045650,10.6932203,182.03,181.98,10.6932203]
[1747184046020,10.6932203,182.02,181.97,10.6932203]
[1747184046252,10.6932203,182.01,181.96,10.6932203]
[1747184046548,45.22548749,182.05,181.98,10.6932203]
[1747184046748,10.6932203,182.02,181.98,10.6932203]
[1747184047347,5.49390176,182.02,181.98,10.6932203]
[1747184048759,5.49390176,182.02,181.99,10.6932203]
[1747184049423,5.49329817,182.04,182.0,10.6932203]
[1747184049622,5.49329817,182.04,182.01,10.6932203]
[1747184049843,5.49329817,182.04,182.0,10.6932203]
[1747184050041,5.49329817,182.04,182.01,10.6932203]
[1747184050626,1.3,182.03,182.01,10.6932203]
[1747184050945,6.29372041,182.03,182.01,10.6932203]
[1747184052238,6.29372041,182.03,181.96,5.4956424]
[1747184052443,6.29372041,182.03,181.99,10.6932203]
[1747184052759,6.29372041,182.03,181.95,19.76]
[1747184052760,10.6932203,182.02,181.95,19.76]
[1747184053052,5.49450549,182.0,181.96,10.6932203]
[1747184053238,5.49450549,182.0,181.92,26.0]
[1747184053438,5.49450549,182.0,181.97,10.6932203]
[1747184053637,5.49450549,182.0,181.92,26.0]
[1747184053837,5.49450549,182.0,181.97,10.6932203]
[1747184054060,0.4,182.01,181.99,10.6932203]
[1747184054564,5.89423604,182.01,181.98,10.6932203]
[1747184054733,0.4,182.01,181.99,10.6932203]
[1747184055756,0.4,182.01,182.0,10.6932203]
[1747184056151,0.4,182.04,182.0,10.6932203]
[1747184056337,0.4,182.04,181.95,45.23605385]
[1747184056338,0.4,182.04,182.02,10.6932203]
[1747184057159,0.4,182.04,182.03,10.6932203]
[1747184057460,2.70150444,182.05,182.03,10.6932203]
[1747184057653,5.49276414,182.06,181.99,0.14216157]
[1747184057855,5.49239303,182.07,182.03,10.6932203]
[1747184058053,5.89239303,182.07,182.03,10.6932203]
[1747184058656,16.58561333,182.07,182.02,10.6932203]
[1747184060067,16.58561333,182.07,182.03,10.6932203]
[1747184060755,10.6932203,182.06,181.98,19.76]
[1747184060946,11.0932203,182.06,181.98,19.76]
[1747184061141,10.6932203,182.0,181.93,19.76]
[1747184061352,6.69633979,181.99,181.94,6.69633979]
[1747184061665,6.69633979,182.0,181.95,6.69633979]
[1747184061965,6.69633979,181.96,181.88,5.49789254]
[1747184062169,12.19114719,181.99,181.94,6.69633979]
[1747184062340,12.19114719,181.99,181.9,5.49751375]
[1747184062662,12.19114719,181.99,181.94,6.69633979]
[1747184063246,6.69633979,181.99,181.94,6.69633979]
[1747184063565,6.69633979,181.99,181.89,6.69633979]
[1747184063566,10.71487885,181.98,181.93,10.71487885]
[1747184063862,19.2311301,182.0,181.91,10.71487885]
[1747184063863,10.71487885,181.96,181.91,10.71487885]
[1747184064861,10.71487885,181.97,181.92,10.71487885]
[1747184065446,5.49571334,181.96,181.92,10.71487885]
[1747184066261,5.49571334,181.96,181.87,211.10058057]
[1747184066262,10.71487885,181.95,181.87,205.60216157]
[1747184066448,10.71487885,181.95,181.89,10.71487885]
[1747184067168,10.71487885,181.95,181.9,10.71487885]
[1747184067748,5.49631746,181.94,181.9,10.71487885]
[1747184068242,5.49631746,181.94,181.91,10.71487885]
[1747184069264,5.49631746,181.94,181.9,10.71487885]
[1747184069669,10.71487885,181.93,181.86,21.327]
[1747184069868,10.71487885,181.93,181.88,10.71487885]
[1747184070045,5.49631746,181.94,181.89,10.71487885]
[1747184070379,16.21119631,181.94,181.89,10.71487885]
[1747184070544,10.71487885,181.93,181.88,10.71487885]
[1747184071359,16.21119631,181.94,181.89,10.71487885]
[1747184071754,16.21119631,181.94,181.86,21.46916157]
[1747184071755,5.49631746,181.94,181.86,21.46916157]
[1747184071984,5.49631746,181.94,181.9,10.71487885]
[1747184074679,5.49631746,181.94,181.89,10.71487885]
[1747184075347,16.21119631,181.94,181.89,10.71487885]
[1747184077971,5.49601538,181.95,181.9,10.71487885]
[1747184078278,2.79734082,181.96,181.92,10.71487885]
[1747184078451,0.4,181.99,181.95,10.71487885]
[1747184078652,11.11487885,181.99,181.9,0.14216157]
[1747184078956,11.11487885,181.99,181.94,10.71487885]
[1747184079572,5.49510935,181.98,181.94,10.71487885]
[1747184080368,19.23288273,181.98,181.9,0.14216157]
[1747184080652,29.94776158,181.98,181.93,10.71487885]
[1747184080952,10.71487885,181.95,181.9,10.71487885]
[1747184081169,19.23288273,181.98,181.92,10.71487885]
[1747184081170,10.71487885,181.97,181.92,10.71487885]
[1747184081880,5.49571334,181.96,181.92,10.71487885]
[1747184082283,10.71487885,181.97,181.95,10.71487885]
[1747184082284,5.49546136,181.97,181.95,10.71487885]
[1747184082752,5.49546136,181.97,181.94,10.71487885]
[1747184082957,16.21034021,181.97,181.92,10.71487885]
[1747184083170,10.71487885,181.96,181.91,10.71487885]
[1747184083479,6.69879999,181.94,181.88,6.69879999]
[1747184083855,6.69879999,181.93,181.88,6.69879999]
[1747184084060,5.49692172,181.92,181.88,6.69879999]
[1747184084768,5.49692172,181.92,181.89,6.69879999]
[1747184085273,5.49692172,181.92,181.89,10.7197136]
[1747184086681,5.49661957,181.93,181.89,10.7197136]
[1747184087982,5.49661957,181.93,181.9,10.7197136]
[1747184088283,5.49661957,181.93,181.91,10.7197136]
[1747184088661,19.23319879,181.98,181.91,10.7197136]
[1747184088861,10.7197136,181.96,181.91,10.7197136]
[1747184089103,10.7197136,181.96,181.87,31.498189]
[1747184089264,10.7197136,181.94,181.87,26.0]
[1747184089466,10.7197136,181.94,181.9,10.7197136]
[1747184089770,38.99319879,181.98,181.9,10.7197136]
[1747184089969,10.7197136,181.95,181.9,10.7197136]
[1747184090164,38.99319879,181.98,181.9,10.7197136]
[1747184090565,10.7197136,181.95,181.9,10.7197136]
[1747184090978,38.99319879,181.98,181.9,10.7197136]
[1747184091285,5.49631746,181.94,181.9,10.7197136]
[1747184092966,19.23393965,181.97,181.9,10.7197136]
[1747184093167,10.7197136,181.95,181.9,10.7197136]
[1747184093976,5.49631746,181.94,181.91,10.7197136]
[1747184094586,5.49599992,181.96,181.93,10.7197136]
[1747184094790,10.7197136,181.98,181.94,10.7197136]
[1747184094791,5.49510935,181.98,181.94,10.7197136]
[1747184096482,5.49510935,181.98,181.95,10.7197136]
[1747184096686,3.15225225,181.99,181.96,10.7197136]
[1747184096687,8.24709845,181.99,181.96,10.7197136]
[1747184097580,18.96681205,181.99,181.95,10.7197136]
[1747184098166,8.24709845,181.99,181.95,10.7197136]
[1747184098388,8.24709845,181.99,181.92,0.14216157]
[1747184098596,8.24709845,181.99,181.95,10.7197136]
[1747184099088,21.98411696,181.99,181.95,10.7197136]
[1747184099302,21.98411696,181.99,181.92,0.14216157]
[1747184099471,21.98411696,181.99,181.95,10.7197136]
[1747184100367,21.98411696,181.99,181.9,26.0]
[1747184100368,33.10383056,181.99,181.94,10.7197136]
[1747184100582,22.38411696,181.99,181.95,10.7197136]
[1747184101092,22.38411696,181.99,181.94,10.7197136]
[1747184102194,10.7197136,181.95,181.89,10.7197136]
[1747184102396,10.7197136,181.94,181.89,10.7197136]
[1747184103107,5.49631746,181.94,181.9,10.7197136]
[1747184104193,5.49631746,181.94,181.91,10.7197136]
[1747184105301,19.23553419,181.96,181.91,6.69833159]
[1747184105771,25.93386578,181.96,181.87,45.74]
[1747184105976,6.69833159,181.92,181.87,19.74]
[1747184106196,6.69833159,181.92,181.87,26.43833159]
[1747184106492,6.69833159,181.93,181.88,6.69833159]
[1747184107098,66.4541009,181.96,181.87,19.74]
[1747184107099,6.69833159,181.91,181.87,19.74]
[1747184107293,92.4541009,181.96,181.82,205.74]
[1747184107294,5.49843294,181.87,181.82,19.74]
[1747184107488,5.49843294,181.87,181.83,6.69833159]
[1747184107702,5.49843294,181.87,181.84,6.69833159]
[1747184108107,5.49843294,181.87,181.85,6.69833159]
[1747184108283,5.49843294,181.87,181.86,6.69833159]
[1747184108707,5.49843294,181.87,181.82,19.74]
[1747184108893,5.49843294,181.87,181.83,6.69833159]
[1747184109200,19.2445153,181.87,181.84,6.69833159]
[1747184109422,19.2445153,181.87,181.82,19.74]
[1747184109585,19.2445153,181.87,181.83,6.69833159]
[1747184111212,25.94284689,181.87,181.82,26.43833159]
[1747184111386,19.2445153,181.87,181.83,6.69833159]
[1747184113305,21.93530042,181.87,181.83,6.69833159]
[1747184114607,6.69833159,181.86,181.82,19.74]
[1747184114804,6.69833159,181.85,181.82,19.74]
[1747184115121,6.69833159,181.83,181.77,19.74]
[1747184115417,6.69833159,181.8,181.77,19.74]
[1747184115609,6.69833159,181.8,181.73,18.64975096]
[1747184115812,0.4,181.82,181.75,6.69833159]
[1747184116116,5.50085263,181.79,181.74,6.69833159]
[1747184116306,5.50085263,181.79,181.76,6.69833159]
[1747184116507,5.50085263,181.79,181.78,6.69833159]
[1747184116690,5.50085263,181.79,181.74,0.14216157]
[1747184116890,5.50085263,181.79,181.75,6.69833159]
[1747184117197,19.25298421,181.79,181.73,17.11695096]
[1747184117403,6.69833159,181.76,181.73,17.11695096]
[1747184117790,6.69833159,181.77,181.73,17.11695096]
[1747184118019,6.69833159,181.77,181.72,35.78395299]
[1747184118229,6.69833159,181.73,181.68,17.11695096]
[1747184118515,20.28216157,181.75,181.68,17.11695096]
[1747184118715,6.69833159,181.71,181.68,17.11695096]
[1747184118890,6.69833159,181.7,181.68,17.11695096]
[1747184119519,6.69833159,181.71,181.68,17.11695096]
[1747184119722,6.69833159,181.72,181.68,17.11695096]
[1747184119931,0.4,181.75,181.68,17.11695096]
[1747184120218,5.5029716,181.72,181.68,17.11695096]
[1747184120521,5.5029716,181.72,181.69,6.69833159]
[1747184120828,5.5029716,181.72,181.7,6.69833159]
[1747184121293,5.50176056,181.76,181.71,10.74203333]
[1747184121499,5.50176056,181.76,181.73,10.74203333]
[1747184122094,5.50176056,181.76,181.74,10.74203333]
[1747184122418,13.75165667,181.8,181.72,10.74203333]
[1747184122419,16.24349121,181.77,181.72,10.74203333]
[1747184122842,5.50145788,181.77,181.73,10.74203333]
[1747184123008,16.24310342,181.79,181.74,10.74203333]
[1747184124294,10.74203333,181.78,181.73,10.74203333]
[1747184124628,10.74203333,181.74,181.65,30.48203333]
[1747184124925,10.74203333,181.7,181.65,30.48203333]
[1747184125726,0.4,181.73,181.67,10.74203333]
[1747184126024,10.74203333,181.72,181.65,19.74]
[1747184126226,10.74203333,181.71,181.66,10.74203333]
[1747184126525,5.50357732,181.7,181.66,10.74203333]
[1747184126726,0.4,181.73,181.69,10.74203333]
[1747184127034,0.4,181.73,181.7,10.74203333]
[1747184127326,5.50176056,181.76,181.7,10.74203333]
[1747184127634,5.50085263,181.79,181.75,10.74203333]
[1747184127798,16.24288596,181.79,181.74,10.74203333]
[1747184127998,10.74203333,181.77,181.72,10.74203333]
[1747184128223,10.74203333,181.78,181.73,10.74203333]
[1747184128605,5.50145788,181.77,181.73,10.74203333]
[1747184128922,5.50145788,181.77,181.74,10.74203333]
[1747184129141,10.74203333,181.75,181.64,19.74]
[1747184129434,29.99713592,181.77,181.72,10.74203333]
[1747184130141,6.3668,181.72,181.61,5.50628934]
[1747184130311,10.74203333,181.7,181.65,10.74203333]
[1747184130510,10.74203333,181.72,181.67,10.74203333]
[1747184130737,5.50327444,181.71,181.68,10.74203333]
[1747184130946,13.75558525,181.75,181.7,10.74203333]
[1747184130947,5.50206327,181.75,181.7,10.74203333]
[1747184131111,5.50206327,181.75,181.73,10.74203333]
[1747184132125,5.50206327,181.75,181.72,10.74203333]
[1747184132327,5.50206327,181.75,181.73,10.74203333]
[1747184132638,5.50145788,181.77,181.73,10.74203333]
[1747184132863,29.99713592,181.77,181.72,10.74203333]
[1747184133148,29.99713592,181.77,181.66,46.02432314]
[1747184133149,10.74203333,181.75,181.69,10.74203333]
[1747184133444,10.74203333,181.73,181.68,10.74203333]
[1747184133821,10.74203333,181.74,181.69,10.74203333]
[1747184134138,10.74203333,181.76,181.71,10.74203333]
[1747184134722,5.50206327,181.75,181.71,10.74203333]
[1747184134947,5.50206327,181.75,181.66,25.24470835]
[1747184135252,5.50206327,181.75,181.71,10.74203333]
[1747184135641,5.50206327,181.75,181.72,10.74203333]
[1747184135832,5.50176056,181.76,181.73,10.74203333]
[1747184136341,5.50176056,181.76,181.72,10.74203333]
[1747184136523,19.25616196,181.76,181.72,10.74203333]
[1747184137347,19.25616196,181.76,181.74,10.74203333]
[1747184137551,19.25616196,181.76,181.67,0.14216157]
[1747184137859,19.25616196,181.76,181.72,10.74203333]
[1747184140368,29.99819529,181.76,181.71,10.74203333]
[1747184141149,10.74203333,181.75,181.7,10.74203333]
[1747184141326,10.74203333,181.74,181.69,10.74203333]
[1747184141522,10.74203333,181.73,181.69,30.48203333]
[1747184141728,10.74203333,181.74,181.69,30.48203333]
[1747184141961,10.74203333,181.73,181.69,19.74]
[1747184142857,5.5029716,181.72,181.69,19.74]
[1747184143038,5.5029716,181.72,181.7,10.74203333]
[1747184143551,5.5029716,181.72,181.69,30.48203333]
[1747184144660,5.5029716,181.72,181.69,19.74]
[1747184144857,5.50266879,181.73,181.69,30.48203333]
[1747184146162,5.50266879,181.73,181.7,10.74203333]
[1747184146374,5.50266879,181.73,181.71,10.74203333]
[1747184146669,5.50206327,181.75,181.72,10.74203333]
[1747184146958,5.50206327,181.75,181.69,19.74]
[1747184146959,5.50085263,181.79,181.74,10.74203333]
[1747184147140,5.50085263,181.79,181.77,10.74203333]
[1747184147458,5.50085263,181.79,181.72,0.28432314]
[1747184147459,5.50067339,181.8,181.78,6.70822797]
[1747184147655,5.49964252,181.83,181.78,6.70822797]
[1747184147888,14.95264495,181.83,181.78,6.70822797]
[1747184148536,8.24441698,181.83,181.79,6.70822797]
[1747184148733,14.95264495,181.83,181.76,19.72]
[1747184148948,6.70822797,181.8,181.74,1.6115]
[1747184149170,6.70822797,181.8,181.75,6.70822797]
[1747184149371,10.73654319,181.8,181.75,10.73654319]
[1747184150237,21.99352328,181.83,181.74,19.72]
[1747184150238,10.73654319,181.79,181.74,19.72]
[1747184150456,10.73654319,181.77,181.74,19.72]
[1747184150660,10.73654319,181.78,181.74,19.72]
[1747184150853,5.50145788,181.77,181.74,19.72]
[1747184151835,5.50145788,181.77,181.74,30.45654319]
[1747184152471,5.50085263,181.79,181.75,10.73654319]
[1747184152655,5.50085263,181.79,181.76,10.73654319]
[1747184152855,5.50055005,181.8,181.76,10.73654319]
[1747184153049,16.49431682,181.83,181.78,10.73654319]
[1747184153252,16.49431682,181.83,181.79,10.73654319]
[1747184153568,5.499945,181.82,181.78,10.73654319]
[1747184153752,5.499945,181.82,181.77,10.73654319]
[1747184154556,5.499945,181.82,181.78,10.73654319]
[1747184155346,16.23648819,181.82,181.77,10.73654319]
[1747184155880,5.499945,181.82,181.77,10.73654319]
[1747184156173,5.499945,181.82,181.78,10.73654319]
[1747184156373,5.499945,181.82,181.77,10.73654319]
[1747184156671,5.499945,181.82,181.78,10.73654319]
[1747184156865,16.23648819,181.82,181.77,10.73654319]
[1747184157772,5.499945,181.82,181.78,10.73654319]
[1747184158842,5.499945,181.82,181.79,10.73654319]
[1747184159757,8.24447404,181.83,181.79,10.73654319]
[1747184159957,2.74477446,181.83,181.81,10.73654319]
[1747184160162,5.4995581,181.84,181.81,10.73654319]
[1747184160650,5.4995581,181.84,181.8,10.73654319]
[1747184161375,10.73654319,181.81,181.75,19.72]
[1747184161678,10.73654319,181.82,181.77,10.73654319]
[1747184162463,19.24790829,181.84,181.78,10.73654319]
[1747184162663,10.73654319,181.83,181.78,10.73654319]
[1747184163154,5.49964252,181.83,181.79,10.73654319]
[1747184163783,5.49964252,181.83,181.8,10.73654319]
[1747184164574,2.75804233,181.84,181.82,10.73654319]
[1747184164751,5.49873529,181.86,181.82,10.73654319]
[1747184165273,5.49873529,181.86,181.84,10.73654319]
[1747184165577,16.23437154,181.89,181.84,10.73654319]
[1747184166271,5.49782835,181.89,181.85,10.73654319]
[1747184167083,21.94946269,181.9,181.85,10.73654319]
[1747184167292,32.68600588,181.9,181.85,10.73654319]
[1747184167659,8.20521066,181.9,181.87,10.73654319]
[1747184168285,8.20521066,181.9,181.86,10.73654319]
[1747184169253,8.20521066,181.9,181.86,6.70171746]
[1747184169854,8.20521066,181.9,181.88,6.70171746]
[1747184170091,2.70768455,181.9,181.89,6.70171746]
[1747184170291,5.49723627,181.91,181.89,6.70171746]
[1747184170794,5.49661957,181.93,181.89,6.70171746]
[1747184171473,8.2393092,181.93,181.89,6.70171746]
[1747184173104,6.70171746,181.92,181.88,19.72]
[1747184173398,6.70171746,181.92,181.83,19.72]
[1747184173399,6.70171746,181.89,181.83,19.72]
[1747184173699,6.70171746,181.88,181.83,26.42171746]
[1747184173869,6.70171746,181.88,181.84,6.70171746]
[1747184174200,6.70171746,181.89,181.84,6.70171746]
[1747184174364,12.19984809,181.88,181.83,26.42171746]
[1747184174970,5.49813063,181.88,181.84,6.70171746]
[1747184175189,5.49813063,181.88,181.83,26.42171746]
[1747184175495,12.19984809,181.88,181.83,26.42171746]
[1747184176300,5.49752611,181.9,181.84,6.70171746]
[1747184176593,12.19924357,181.9,181.85,6.70171746]
[1747184176960,6.70171746,181.88,181.83,26.42171746]
[1747184177700,6.70171746,181.89,181.84,6.70171746]
[1747184178180,6.70171746,181.88,181.84,6.70171746]
[1747184178362,19.24134139,181.9,181.84,6.70171746]
[1747184178566,19.24134139,181.9,181.85,6.70171746]
[1747184178767,6.70171746,181.89,181.84,6.70171746]
[1747184179196,19.24134139,181.9,181.84,6.70171746]
[1747184179393,6.70171746,181.89,181.84,6.70171746]
[1747184179779,5.49752611,181.9,181.86,6.70171746]
[1747184180683,5.49752611,181.9,181.87,6.70171746]
[1747184181274,0.4,181.91,181.89,6.70171746]
[1747184181275,5.89730392,181.91,181.89,6.70171746]
[1747184181474,5.49730392,181.91,181.89,6.70171746]
[1747184181712,5.4969633,181.92,181.89,6.70171746]
[1747184182025,8.23931359,181.93,181.89,6.70171746]
[1747184182184,5.49662396,181.93,181.89,6.70171746]
[1747184182585,5.49662396,181.93,181.9,6.70171746]
[1747184183289,12.19834142,181.93,181.88,6.70171746]
[1747184183494,6.70171746,181.92,181.87,6.70171746]
[1747184183697,6.70171746,181.91,181.86,6.70171746]
[1747184184211,6.70171746,181.89,181.82,1.5244]
[1747184184422,6.70171746,181.86,181.81,6.70171746]
[1747184184723,5.49903766,181.85,181.81,6.70171746]
[1747184185286,12.20075512,181.85,181.8,26.38171746]
[1747184185511,6.70171746,181.84,181.8,19.68]
[1747184185714,12.20075512,181.85,181.8,26.38171746]
[1747184186396,12.20075512,181.85,181.81,6.70171746]
[1747184187114,6.70171746,181.86,181.81,6.70171746]
[1747184187319,6.70171746,181.84,181.8,19.68]
[1747184188198,6.70171746,181.86,181.81,6.70171746]